{"text_format":"1","workbook":"xlsx","n_sheets":2,"sheets":["Time Budget Template","Time Budget - BLANK"],"not_rendered":{"charts":0,"images":2,"macros":0,"external_links":0,"defined_names":2,"comments":0,"pivot_tables":0},"unopened":[],"bounds":{"document_bytes":16777216,"sheet_cells":100000,"rows_first":2000,"rows_last":500,"rows_between":2000,"halvings":0,"cell_chars":16384,"cell_head_chars":4096},"cells_cut":0,"cells_raw":0,"read":"whole","date_system":"1900"}

{"sheet":"Time Budget Template","index":0,"n_rows":34,"n_cols":13,"rows_kept":34,"cut":false,"hidden":false,"merged":[[0,1,0,9],[3,10,4,10],[3,2,3,8],[3,1,4,1],[3,9,4,9],[3,12,4,12],[2,2,2,9],[3,11,4,11],[2,10,2,11],[33,1,33,12]]}
[null,"TIME BUDGET TEMPLATE"]
[]
[null,null,"TOTAL NUMBER OF HOURS AVAILABLE PER WEEK",null,null,null,null,null,null,null,168,null,"<-- Based on 24/7.  Adjust number to suit your budget."]
[null,"ACTIVITY DESCRIPTION","TIME IN MINUTES",null,null,null,null,null,null,"WEEKLY TOTALS \nIN MINS","WEEKLY TOTALS IN HRS","BALANCE IN HOURS","NOTES / TAKEAWAY FROM TIME BUDGET"]
[null,null,"Su","M","T","W ","R","F","Sa"]
[null,"Class Time",null,null,null,null,480,null,null,{"$f":"SUM(C6:I6)","v":480},{"$f":"J6/60","v":8},{"$f":"K3-K6","v":160}]
[null,"Commuting",null,null,null,null,50,null,null,{"$f":"SUM(C7:I7)","v":50},0.83333333333333337,{"$f":"L6-K7","v":159.16666666666666}]
[null,"Entertainment - Home",null,null,null,null,120,null,120,240,4,{"$f":"L7-K8","v":155.16666666666666}]
[null,"Entertainment - Outside of Home",null,null,null,null,60,null,null,60,1,154.16666666666666]
[null,"Exercise",null,null,null,null,60,null,null,60,1,153.16666666666666]
[null,"Family / Friends",null,null,null,null,15,null,600,615,10.25,142.91666666666666]
[null,"Homework",60,null,null,null,90,null,30,180,3,139.91666666666666]
[null,"Internet / Social Media",null,null,null,null,40,null,20,{"$f":"SUM(C13:I13)","v":60},1,138.91666666666666]
[null,"Meals / Eating",null,null,null,null,75,null,60,135,2.25,136.66666666666666]
[null,"Personal Care",null,null,null,null,30,null,30,60,1,135.66666666666666]
[null,"Recreation",null,null,null,null,null,null,50,50,0.83333333333333337,134.83333333333331]
[null,"Social Engagements",180,null,null,null,null,null,null,180,3,131.83333333333331]
[null,"Sleep",null,null,null,null,420,null,480,900,15,116.83333333333331]
[null,"Travel",null,null,null,null,null,null,null,0,0,116.83333333333331]
[null,"Work",null,null,null,null,null,null,null,0,0,116.83333333333331]
[null,null,null,null,null,null,null,null,null,0,0,116.83333333333331]
[null,null,null,null,null,null,null,null,null,0,0,116.83333333333331]
[null,null,null,null,null,null,null,null,null,0,0,116.83333333333331]
[null,null,null,null,null,null,null,null,null,0,0,116.83333333333331]
[null,null,null,null,null,null,null,null,null,0,0,116.83333333333331]
[null,null,null,null,null,null,null,null,null,0,0,116.83333333333331]
[null,null,null,null,null,null,null,null,null,0,0,116.83333333333331]
[null,null,null,null,null,null,null,null,null,0,0,116.83333333333331]
[null,null,null,null,null,null,null,null,null,0,0,116.83333333333331]
[null,null,null,null,null,null,null,null,null,0,0,116.83333333333331]
[null,null,null,null,null,null,null,null,null,0,0,{"$f":"L30-K31","v":116.83333333333331}]
[null,"GRAND TOTALS",{"$f":"SUM(C6:C31)","v":240},{"$f":"SUM(D6:D31)","v":0},0,0,1440,0,1390,3070,51.166666666666664,{"$f":"L31","v":116.83333333333331},"DAILY TOTALS SHOULD EQUAL 24 HOURS  | 1440 MINUTES"]
[]
[null,"CLICK HERE TO CREATE TIME BUDGET TEMPLATES IN SMARTSHEET"]

{"sheet":"Time Budget - BLANK","index":1,"n_rows":32,"n_cols":13,"rows_kept":32,"cut":false,"hidden":false,"merged":[[3,12,4,12],[0,1,0,9],[2,2,2,9],[2,10,2,11],[3,1,4,1],[3,2,3,8],[3,9,4,9],[3,10,4,10],[3,11,4,11]]}
[null,"TIME BUDGET TEMPLATE"]
[]
[null,null,"TOTAL NUMBER OF HOURS AVAILABLE PER WEEK",null,null,null,null,null,null,null,168,null,"<-- Based on 24/7.  Adjust number to suit your budget."]
[null,"ACTIVITY DESCRIPTION","TIME IN MINUTES",null,null,null,null,null,null,"WEEKLY TOTALS \nIN MINS","WEEKLY TOTALS IN HRS","BALANCE IN HOURS","NOTES / TAKEAWAY FROM TIME BUDGET"]
[null,null,"Su","M","T","W ","R","F","Sa"]
[null,null,null,null,null,null,null,null,null,{"$f":"SUM(C6:I6)","v":0},{"$f":"J6/60","v":0},{"$f":"K3-K6","v":168}]
[null,null,null,null,null,null,null,null,null,{"$f":"SUM(C7:I7)","v":0},0,{"$f":"L6-K7","v":168}]
[null,null,null,null,null,null,null,null,null,0,0,{"$f":"L7-K8","v":168}]
[null,null,null,null,null,null,null,null,null,0,0,168]
[null,null,null,null,null,null,null,null,null,0,0,168]
[null,null,null,null,null,null,null,null,null,0,0,168]
[null,null,null,null,null,null,null,null,null,0,0,168]
[null,null,null,null,null,null,null,null,null,0,0,168]
[null,null,null,null,null,null,null,null,null,0,0,168]
[null,null,null,null,null,null,null,null,null,0,0,168]
[null,null,null,null,null,null,null,null,null,0,0,168]
[null,null,null,null,null,null,null,null,null,0,0,168]
[null,null,null,null,null,null,null,null,null,0,0,168]
[null,null,null,null,null,null,null,null,null,0,0,168]
[null,null,null,null,null,null,null,null,null,0,0,168]
[null,null,null,null,null,null,null,null,null,0,0,168]
[null,null,null,null,null,null,null,null,null,0,0,168]
[null,null,null,null,null,null,null,null,null,0,0,168]
[null,null,null,null,null,null,null,null,null,0,0,168]
[null,null,null,null,null,null,null,null,null,0,0,168]
[null,null,null,null,null,null,null,null,null,0,0,168]
[null,null,null,null,null,null,null,null,null,0,0,168]
[null,null,null,null,null,null,null,null,null,0,0,168]
[null,null,null,null,null,null,null,null,null,0,0,168]
[null,null,null,null,null,null,null,null,null,0,0,168]
[null,null,null,null,null,null,null,null,null,0,0,{"$f":"L30-K31","v":168}]
[null,"GRAND TOTALS",{"$f":"SUM(C6:C31)","v":0},{"$f":"SUM(D6:D31)","v":0},0,0,{"$f":"SUM(G6:G31)","v":0},0,0,0,0,{"$f":"L31","v":168},"DAILY TOTALS SHOULD EQUAL 24 HOURS  | 1440 MINUTES"]